fUSD/lending_fUSD_20240814
["ID","MTS","AMOUNT","RATE_DAILY","PERIOD"]
[334840102,1723607461430,-2111.74,0.00014246,2]
[334840103,1723607461440,-471.89714861,0.00014246,2]
[334840104,1723607461451,-1233.9,0.00014246,2]
[334840105,1723607461461,-3815.52,0.00014246,2]
[334840106,1723607461471,-500.0,0.00014246,2]
[334840107,1723607461481,-2334.24,0.00014246,2]
[334840108,1723607461491,-848.59,0.00014246,2]
[334840109,1723607461500,-500.0,0.00014246,2]
[334840110,1723607461510,-718.84,0.00014246,2]
[334840111,1723607461519,-1454.45,0.00014246,2]
[334840112,1723607461529,-500.0,0.00014246,2]
[334840113,1723607461540,-996.86,0.00014246,2]
[334840114,1723607461550,-500.0,0.00014246,2]
[334840115,1723607461560,-500.0,0.00014246,2]
[334840116,1723607461570,-1146.42,0.00014246,2]
[334840117,1723607461580,-1413.89,0.00014246,2]
[334840118,1723607461589,-1306.14,0.00014246,2]
[334840119,1723607461599,-500.0,0.00014246,2]
[334840120,1723607461608,-851.44,0.00014246,2]
[334840121,1723607461618,-2059.77,0.00014246,2]
[334840122,1723607461628,-1108.11,0.00014246,2]
[334840123,1723607461638,-592.2,0.00014246,2]
[334840124,1723607461648,-701.35,0.00014246,2]
[334840125,1723607461657,-863.81,0.00014246,2]
[334840126,1723607461667,-640.01,0.00014246,2]
[334840127,1723607461677,-842.9,0.00014246,2]
[334840128,1723607461687,-1173.01,0.00014246,2]
[334840129,1723607461696,-500.0,0.00014246,2]
[334840130,1723607461707,-500.0,0.00014246,2]
[334840131,1723607461717,-500.0,0.00014246,2]
[334840132,1723607461728,-500.0,0.00014246,2]
[334840133,1723607461738,-500.0,0.00014246,2]
[334840134,1723607461748,-1366.52,0.00014246,2]
[334840135,1723607461758,-1120.85,0.00014246,2]
[334840136,1723607461768,-500.0,0.00014246,2]
[334840137,1723607461778,-500.0,0.00014246,2]
[334840138,1723607461788,-500.0,0.00014246,2]
[334840139,1723607461797,-1258.07,0.00014246,2]
[334840140,1723607461807,-1345.95,0.00014246,2]
[334840141,1723607461817,-666.14,0.00014246,2]
[334840142,1723607461827,-527.01,0.00014246,2]
[334840143,1723607461837,-500.0,0.00014246,2]
[334840144,1723607461847,-1024.41,0.00014246,2]
[334840145,1723607461857,-500.0,0.00014246,2]
[334840146,1723607461867,-2173.7,0.00014246,2]
[334840147,1723607461877,-984.97,0.00014246,2]
[334840148,1723607461887,-2468.39,0.00014246,2]
[334840149,1723607461897,-500.0,0.00014246,2]
[334840150,1723607461908,-500.0,0.00014246,2]
[334840151,1723607461918,-737.25,0.00014246,2]
[334840152,1723607461927,-990.66,0.00014246,2]
[334840153,1723607461937,-836.37,0.00014246,2]
[334840154,1723607461947,-652.06,0.00014246,2]
[334840155,1723607461957,-1124.45,0.00014246,2]
[334840156,1723607461967,-617.29,0.00014246,2]
[334840157,1723607461976,-657.84,0.00014246,2]
[334840158,1723607461986,-1513.15,0.00014246,2]
[334840159,1723607461995,-1128.09,0.00014246,2]
[334840160,1723607462005,-500.0,0.00014246,2]
[334840161,1723607462014,-1593.05,0.00014246,2]
[334840162,1723607462023,-1465.45,0.00014246,2]
[334840163,1723607462033,-512.37,0.00014246,2]
[334840164,1723607462044,-500.0,0.00014246,2]
[334840165,1723607462053,-500.0,0.00014246,2]
[334840166,1723607462064,-1433.68,0.00014246,2]
[334840167,1723607462073,-1436.38,0.00014246,2]
[334840168,1723607462083,-566.62,0.00014246,2]
[334840169,1723607462093,-500.0,0.00014246,2]
[334840170,1723607462103,-500.0,0.00014246,2]
[334840171,1723607462115,-500.0,0.00014246,2]
[334840172,1723607462125,-980.27,0.00014246,2]
[334840173,1723607462135,-1757.62,0.00014246,2]
[334840174,1723607462145,-1090.22,0.00014246,2]
[334840175,1723607462155,-2446.57,0.00014246,2]
[334840176,1723607462164,-2344.16,0.00014246,2]
[334840177,1723607462176,-500.0,0.00014246,2]
[334840178,1723607462185,-500.0,0.00014246,2]
[334840179,1723607462197,-500.0,0.00014246,2]
[334840180,1723607462208,-1919.8,0.00014246,2]
[334840181,1723607462218,-850.36,0.00014246,2]
[334840182,1723607462227,-743.85,0.00014246,2]
[334840183,1723607462237,-500.0,0.00014246,2]
[334840184,1723607462247,-2805.57,0.00014246,2]
[334840185,1723607462256,-713.35,0.00014246,2]
[334840186,1723607462266,-536.68,0.00014246,2]
[334840187,1723607462275,-654.34,0.00014246,2]
[334840188,1723607462285,-500.0,0.00014246,2]
[334840189,1723607462294,-500.0,0.00014246,2]
[334840190,1723607462304,-557.78,0.00014246,2]
[334840191,1723607462314,-738.54,0.00014246,2]
[334840192,1723607462324,-500.0,0.00014246,2]
[334840193,1723607462334,-1222.0,0.00014246,2]
[334840194,1723607462343,-3268.85,0.00014246,2]
[334840195,1723607462353,-1232.17,0.00014246,2]
[334840196,1723607462363,-759.17,0.00014246,2]
[334840197,1723607462373,-1276.5,0.00014246,2]
[334840198,1723607462383,-1227.19,0.00014246,2]
[334840199,1723607462392,-660.75,0.00014246,2]
[334840200,1723607462402,-500.0,0.00014246,2]
[334840201,1723607462412,-1099.44,0.00014246,2]
[334840202,1723607462421,-500.0,0.00014246,2]
[334840203,1723607462432,-2090.28,0.00014246,2]
[334840204,1723607462441,-500.0,0.00014246,2]
[334840205,1723607462451,-500.0,0.00014246,2]
[334840206,1723607462460,-508.15,0.00014246,2]
[334840207,1723607462469,-793.09,0.00014246,2]
[334840208,1723607462479,-500.0,0.00014246,2]
[334840209,1723607462489,-500.0,0.00014246,2]
[334840210,1723607462499,-500.0,0.00014246,2]
[334840211,1723607462508,-500.0,0.00014246,2]
[334840212,1723607462517,-1244.25,0.00014246,2]
[334840213,1723607462527,-808.2,0.00014246,2]
[334840214,1723607462536,-1870.71,0.00014246,2]
[334840215,1723607462545,-500.0,0.00014246,2]
[334840216,1723607462555,-500.0,0.00014246,2]
[334840217,1723607462564,-1020.02,0.00014246,2]
[334840218,1723607462574,-1386.1,0.00014246,2]
[334840219,1723607462583,-732.86,0.00014246,2]
[334840220,1723607462593,-500.0,0.00014246,2]
[334840221,1723607462602,-500.0,0.00014246,2]
[334840222,1723607462611,-500.0,0.00014246,2]
[334840223,1723607462621,-1778.14,0.00014246,2]
[334840224,1723607462630,-400.0,0.00014246,2]
[334840225,1723607462639,-1254.8,0.00014246,2]
[334840226,1723607462648,-2294.9,0.00014246,2]
[334840227,1723607462658,-817.60474883,0.00014246,2]
[334840228,1723607462667,-500.0,0.00014246,2]
[334840229,1723607462677,-1685.71,0.00014246,2]
[334840230,1723607462688,-1045.4,0.00014246,2]
[334840231,1723607462698,-769.79,0.00014246,2]
[334840232,1723607462707,-500.0,0.00014246,2]
[334840233,1723607462716,-829.12,0.00014246,2]
[334840234,1723607462725,-500.0,0.00014246,2]
[334840235,1723607462734,-1819.06,0.00014246,2]
[334840236,1723607462743,-584.66,0.00014246,2]
[334840237,1723607462752,-865.12,0.00014246,2]
[334840238,1723607462761,-1828.3,0.00014246,2]
[334840239,1723607462768,-1487.62,0.00014246,2]
[334840240,1723607462775,-1120.95,0.00014246,2]
[334840241,1723607462782,-1122.91,0.00014246,2]
[334840242,1723607462788,-862.4,0.00014246,2]
[334840243,1723607462797,-849.24,0.00014246,2]
[334840244,1723607462805,-1564.47,0.00014246,2]
[334840245,1723607462814,-500.0,0.00014246,2]
[334840246,1723607462824,-866.92,0.00014246,2]
[334840247,1723607462833,-500.0,0.00014246,2]
[334840248,1723607462842,-1212.45,0.00014246,2]
[334840249,1723607462851,-1055.57,0.00014246,2]
[334840250,1723607462860,-2613.0,0.00014246,2]
[334840251,1723607462869,-1994.05,0.00014246,2]
[334840252,1723607462879,-857.51,0.00014246,2]
[334840253,1723607462888,-1338.26,0.00014246,2]
[334840254,1723607462898,-1351.32,0.00014246,2]
[334840255,1723607462907,-500.0,0.00014246,2]
[334840256,1723607462917,-500.0,0.00014246,2]
[334840257,1723607462926,-2029.71,0.00014246,2]
[334840258,1723607462935,-1111.34,0.00014246,2]
[334840259,1723607463038,-500.0,0.00014246,2]
[334840260,1723607463048,-500.0,0.00014246,2]
[334840261,1723607463057,-3777.94,0.00014246,2]
[334840262,1723607463067,-500.0,0.00014246,2]
[334840263,1723607463076,-500.0,0.00014246,2]
[334840264,1723607463086,-921.58,0.00014246,2]
[334840265,1723607463095,-689.07,0.00014246,2]
[334840266,1723607463105,-500.0,0.00014246,2]
[334840267,1723607463118,-833.34,0.00014246,2]
[334840268,1723607463128,-500.0,0.00014246,2]
[334840269,1723607463137,-500.0,0.00014246,2]
[334840270,1723607463147,-589.77,0.00014246,2]
[334840271,1723607463156,-500.0,0.00014246,2]
[334840272,1723607463166,-568.61,0.00014246,2]
[334840273,1723607463175,-500.0,0.00014246,2]
[334840274,1723607463184,-500.0,0.00014246,2]
[334840275,1723607463196,-1554.5,0.00014246,2]
[334840276,1723607463205,-500.0,0.00014246,2]
[334840277,1723607463215,-500.0,0.00014246,2]
[334840278,1723607463225,-1921.5,0.00014246,2]
[334840279,1723607463234,-500.0,0.00014246,2]
[334840280,1723607463244,-500.0,0.00014246,2]
[334840281,1723607463253,-783.79,0.00014246,2]
[334840282,1723607463263,-2631.07,0.00014246,2]
[334840283,1723607463272,-500.0,0.00014246,2]
[334840284,1723607463283,-500.0,0.00014246,2]
[334840285,1723607463292,-500.0,0.00014246,2]
[334840286,1723607463303,-505.7,0.00014246,2]
[334840287,1723607463314,-500.0,0.00014246,2]
[334840288,1723607463323,-573.43,0.00014246,2]
[334840289,1723607463333,-1200.87,0.00014246,2]
[334840290,1723607463343,-500.0,0.00014246,2]
[334840291,1723607463352,-1361.66,0.00014246,2]
[334840292,1723607463362,-2549.22,0.00014246,2]
[334840293,1723607463372,-500.0,0.00014246,2]
[334840294,1723607463382,-592.75,0.00014246,2]
[334840295,1723607463393,-500.0,0.00014246,2]
[334840296,1723607463408,-1917.84,0.00014246,2]
[334840297,1723607463421,-965.13,0.00014246,2]
[334840298,1723607463432,-1397.22,0.00014246,2]
[334840299,1723607463443,-500.0,0.00014246,2]
[334840300,1723607463454,-1460.11,0.00014246,2]
[334840301,1723607463464,-2325.52,0.00014246,2]
[334840302,1723607463474,-500.0,0.00014246,2]
[334840303,1723607463484,-500.0,0.00014246,2]
[334840304,1723607463493,-844.41,0.00014246,2]
[334840305,1723607463502,-764.1,0.00014246,2]
[334840306,1723607463512,-1274.82,0.00014246,2]
[334840307,1723607463521,-1259.41,0.00014246,2]
[334840308,1723607463531,-500.0,0.00014246,2]
[334840309,1723607463541,-500.0,0.00014246,2]
[334840310,1723607463550,-500.0,0.00014246,2]
[334840311,1723607463560,-851.27,0.00014246,2]
[334840312,1723607463569,-929.25,0.00014246,2]
[334840313,1723607463579,-2127.39,0.00014246,2]
[334840314,1723607463589,-883.88,0.00014246,2]
[334840315,1723607463599,-512.16,0.00014246,2]
[334840316,1723607463608,-589.33,0.00014246,2]
[334840317,1723607463617,-500.0,0.00014246,2]
[334840318,1723607463627,-1891.32,0.00014246,2]
[334840319,1723607463636,-500.0,0.00014246,2]
[334840320,1723607463646,-1630.74,0.00014246,2]
[334840321,1723607463655,-2624.85,0.00014246,2]
[334840322,1723607463664,-2240.02,0.00014246,2]
[334840323,1723607463673,-2114.43,0.00014246,2]
[334840324,1723607463682,-500.0,0.00014246,2]
[334840325,1723607463691,-2489.36,0.00014246,2]
[334840326,1723607463701,-1834.05,0.00014246,2]
[334840327,1723607463711,-514.91,0.00014246,2]
[334840328,1723607463721,-530.28,0.00014246,2]
[334840329,1723607463730,-500.0,0.00014246,2]
[334840330,1723607463739,-357.21719006,0.00014246,2]
[334840331,1723607463748,-657.56,0.00014246,2]
[334840332,1723607463758,-580.46,0.00014246,2]
[334840333,1723607463767,-500.0,0.00014246,2]
[334840334,1723607463776,-1292.57,0.00014246,2]
[334840335,1723607463786,-500.0,0.00014246,2]
[334840336,1723607463795,-2155.23,0.00014246,2]
[334840337,1723607463804,-500.0,0.00014246,2]
[334840338,1723607463813,-729.49,0.00014246,2]
[334840339,1723607463823,-803.11,0.00014246,2]
[334840340,1723607463832,-500.0,0.00014246,2]
[334840341,1723607463841,-500.0,0.00014246,2]
[334840342,1723607463850,-784.66,0.00014246,2]
[334840343,1723607463859,-500.0,0.00014246,2]
[334840344,1723607463869,-985.66,0.00014246,2]
[334840345,1723607463878,-1484.83,0.00014246,2]
[334840346,1723607463887,-558.89,0.00014246,2]
[334840347,1723607463897,-1171.57,0.00014246,2]
[334840348,1723607463906,-500.0,0.00014246,2]
[334840349,1723607463916,-961.68,0.00014246,2]
[334840350,1723607463925,-1433.08,0.00014246,2]
[334840351,1723607463934,-644.74,0.00014246,2]
[334840352,1723607463943,-1605.56,0.00014246,2]
[334840353,1723607463953,-544.66,0.00014246,2]
[334840354,1723607463962,-500.0,0.00014246,2]
[334840355,1723607463971,-671.88,0.00014246,2]
[334840356,1723607463980,-500.0,0.00014246,2]
[334840357,1723607463989,-966.64,0.00014246,2]
[334840358,1723607463998,-1438.91,0.00014246,2]
[334840359,1723607464009,-3279.05,0.00014246,2]
[334840360,1723607464019,-1269.61,0.00014246,2]
[334840361,1723607464028,-2431.77,0.00014246,2]
[334840362,1723607464037,-1897.29,0.00014246,2]
[334840363,1723607464047,-500.0,0.00014246,2]
[334840364,1723607464056,-500.0,0.00014246,2]
[334840365,1723607464065,-1900.43,0.00014246,2]
[334840366,1723607464076,-2321.53,0.00014246,2]
[334840367,1723607464085,-500.0,0.00014246,2]
[334840368,1723607464095,-1225.74,0.00014246,2]
[334840369,1723607464104,-751.13,0.00014246,2]
[334840370,1723607464119,-500.0,0.00014246,2]
[334840371,1723607464133,-2710.3,0.00014246,2]
[334840372,1723607464142,-500.0,0.00014246,2]
[334840373,1723607464152,-590.22,0.00014246,2]
[334840374,1723607464162,-1784.2,0.00014246,2]
[334840375,1723607464171,-1096.21,0.00014246,2]
[334840376,1723607464181,-500.0,0.00014246,2]
[334840377,1723607464190,-500.0,0.00014246,2]
[334840378,1723607464199,-500.0,0.00014246,2]
[334840379,1723607464208,-500.0,0.00014246,2]
[334840380,1723607464217,-500.0,0.00014246,2]
[334840381,1723607464226,-500.0,0.00014246,2]
[334840382,1723607464236,-843.23,0.00014246,2]
[334840383,1723607464245,-500.0,0.00014246,2]
[334840384,1723607464255,-500.0,0.00014246,2]
[334840385,1723607464264,-500.0,0.00014246,2]
[334840386,1723607464275,-630.2,0.00014246,2]
[334840387,1723607464286,-500.0,0.00014246,2]
[334840388,1723607464296,-500.0,0.00014246,2]
[334840389,1723607464308,-1522.48,0.00014246,2]
[334840390,1723607464318,-500.0,0.00014246,2]
[334840391,1723607464327,-913.08,0.00014246,2]
[334840392,1723607464337,-648.5,0.00014246,2]
[334840393,1723607464346,-500.0,0.00014246,2]
[334840394,1723607464356,-1893.09,0.00014246,2]
[334840395,1723607464366,-915.27,0.00014246,2]
[334840396,1723607464375,-500.0,0.00014246,2]
[334840397,1723607464385,-2186.94,0.00014246,2]
[334840398,1723607464394,-3275.38,0.00014246,2]
[334840399,1723607464404,-500.0,0.00014246,2]
[334840400,1723607464413,-163.03132972,0.00014246,2]
[334840401,1723607464423,-500.0,0.00014246,2]
[334840402,1723607464433,-500.0,0.00014246,2]
[334840403,1723607464442,-1677.03,0.00014246,2]
[334840404,1723607464452,-1309.3,0.00014246,2]
[334840405,1723607464461,-856.83,0.00014246,2]
[334840406,1723607464471,-1252.5,0.00014246,2]
[334840407,1723607464480,-500.0,0.00014246,2]
[334840408,1723607464491,-500.0,0.00014246,2]
[334840409,1723607464501,-794.25,0.00014246,2]
[334840410,1723607464511,-1414.57,0.00014246,2]
[334840411,1723607464521,-3148.01,0.00014246,2]
[334840412,1723607464531,-1119.98,0.00014246,2]
[334840413,1723607464540,-696.1,0.00014246,2]
[334840414,1723607464549,-500.0,0.00014246,2]
[334840415,1723607464558,-502.10362611,0.00014246,2]
[334840416,1723607464567,-3372.08,0.00014246,2]
[334840417,1723607464577,-500.0,0.00014246,2]
[334840418,1723607464587,-500.0,0.00014246,2]
[334840419,1723607464599,-1053.98,0.00014246,2]
[334840420,1723607464609,-1421.12,0.00014246,2]
[334840421,1723607464618,-500.0,0.00014246,2]
[334840422,1723607464630,-500.0,0.00014246,2]
[334840423,1723607464640,-6656.08,0.00014246,2]
[334840424,1723607464649,-640.54,0.00014246,2]
[334840425,1723607464658,-863.04,0.00014246,2]
[334840426,1723607464668,-1185.24,0.00014246,2]
[334840427,1723607464677,-500.0,0.00014246,2]
[334840428,1723607464687,-500.0,0.00014246,2]
[334840429,1723607464697,-1337.92,0.00014246,2]
[334840430,1723607464706,-500.0,0.00014246,2]
[334840431,1723607464716,-500.0,0.00014246,2]
[334840432,1723607464726,-881.61,0.00014246,2]
[334840433,1723607464736,-500.0,0.00014246,2]
[334840434,1723607464745,-500.0,0.00014246,2]
[334840435,1723607464754,-4803.1,0.00014246,2]
[334840436,1723607464764,-548.08,0.00014246,2]
[334840437,1723607464774,-500.0,0.00014246,2]
[334840438,1723607464783,-3535.74,0.00014246,2]
[334840439,1723607464793,-500.0,0.00014246,2]
[334840440,1723607464803,-500.0,0.00014246,2]
[334840441,1723607464813,-500.0,0.00014246,2]
[334840442,1723607464823,-1286.34,0.00014246,2]
[334840443,1723607464833,-700.94,0.00014246,2]
[334840444,1723607464843,-500.0,0.00014246,2]
[334840445,1723607464852,-500.0,0.00014246,2]
[334840446,1723607464862,-500.0,0.00014246,2]
[334840447,1723607464871,-500.0,0.00014246,2]
[334840448,1723607464882,-500.0,0.00014246,2]
[334840449,1723607464892,-605.71,0.00014246,2]
[334840450,1723607464903,-500.0,0.00014246,2]
[334840451,1723607464912,-500.0,0.00014246,2]
[334840452,1723607464922,-500.0,0.00014246,2]
[334840453,1723607464932,-500.0,0.00014246,2]
[334840454,1723607464942,-2533.03,0.00014246,2]
[334840455,1723607464951,-655.89,0.00014246,2]
[334840456,1723607464960,-528.71,0.00014246,2]
[334840457,1723607464969,-500.0,0.00014246,2]
[334840458,1723607464979,-500.0,0.00014246,2]
[334840459,1723607464988,-694.17,0.00014246,2]
[334840460,1723607464998,-500.0,0.00014246,2]
[334840461,1723607465007,-1287.07,0.00014246,2]
[334840462,1723607465017,-764.7,0.00014246,2]
[334840463,1723607465026,-7712.44,0.00014246,2]
[334840464,1723607465036,-826.02,0.00014246,2]
[334840465,1723607465046,-500.0,0.00014246,2]
[334840466,1723607465055,-3051.08,0.00014246,2]
[334840467,1723607465065,-500.0,0.00014246,2]
[334840468,1723607465074,-2301.35,0.00014246,2]
[334840469,1723607465084,-892.62,0.00014246,2]
[334840470,1723607465094,-500.0,0.00014246,2]
[334840471,1723607465103,-573.74,0.00014246,2]
[334840472,1723607465116,-500.0,0.00014246,2]
[334840473,1723607465127,-1107.8,0.00014246,2]
[334840474,1723607465137,-1861.4,0.00014246,2]
[334840475,1723607465147,-500.0,0.00014246,2]
[334840476,1723607465157,-2273.24,0.00014246,2]
[334840477,1723607465167,-2591.06,0.00014246,2]
[334840478,1723607465177,-500.0,0.00014246,2]
[334840479,1723607465186,-665.28,0.00014246,2]
[334840480,1723607465197,-500.0,0.00014246,2]
[334840481,1723607465207,-757.85,0.00014246,2]
[334840482,1723607465216,-500.0,0.00014246,2]
[334840483,1723607465225,-618.25,0.00014246,2]
[334840484,1723607465235,-2359.68,0.00014246,2]
[334840485,1723607465244,-500.0,0.00014246,2]
[334840486,1723607465254,-1206.64,0.00014246,2]
[334840487,1723607465263,-992.14,0.00014246,2]
[334840488,1723607465273,-616.31,0.00014246,2]
[334840489,1723607465285,-500.0,0.00014246,2]
[334840490,1723607465294,-500.0,0.00014246,2]
[334840491,1723607465303,-1728.26,0.00014246,2]
[334840492,1723607465312,-1436.09,0.00014246,2]
[334840493,1723607465322,-12983.85,0.00014246,2]
[334840494,1723607465331,-1282.64,0.00014246,2]
[334840495,1723607465340,-500.0,0.00014246,2]
[334840496,1723607465349,-1719.54,0.00014246,2]
[334840497,1723607465360,-1106.45,0.00014246,2]
[334840498,1723607465370,-567.82,0.00014246,2]
[334840499,1723607465380,-504.64352909,0.00014246,2]
[334840500,1723607465390,-21892.84,0.00014246,2]
[334840501,1723607465400,-1004.98,0.00014246,2]
[334840502,1723607465410,-1425.33,0.00014246,2]
[334840503,1723607465419,-246.20523879,0.00014246,2]
[334840504,1723607465428,-500.0,0.00014246,2]
[334840505,1723607465437,-794.39,0.00014246,2]
[334840506,1723607465447,-500.0,0.00014246,2]
[334840507,1723607465456,-500.0,0.00014246,2]
[334840508,1723607465465,-619.31143281,0.00014246,2]
[334840509,1723607465474,-1334.68,0.00014246,2]
[334840510,1723607465483,-947.71,0.00014246,2]
[334840511,1723607465493,-2185.69,0.00014246,2]
[334840512,1723607465502,-11265.49,0.00014246,2]
[334840513,1723607465511,-74311.05,0.00014246,2]
[334840514,1723607465520,-2926.39,0.00014246,2]
[334840515,1723607465529,-500.0,0.00014246,2]
[334840516,1723607465539,-827.11,0.00014246,2]
[334840517,1723607465548,-684.84,0.00014246,2]
[334840518,1723607465558,-19652.25,0.00014246,2]
[334840519,1723607465567,-500.0,0.00014246,2]
[334840520,1723607465576,-949.5,0.00014246,2]
[334840521,1723607465585,-500.0,0.00014246,2]
[334840522,1723607465594,-500.0,0.00014246,2]
[334840523,1723607465603,-2325.77,0.00014246,2]
[334840524,1723607465612,-1060.07,0.00014246,2]
[334840525,1723607465622,-500.0,0.00014246,2]
[334840526,1723607465632,-931.34,0.00014246,2]
[334840527,1723607465641,-500.0,0.00014246,2]
[334840528,1723607465652,-11770.95,0.00014246,2]
[334840529,1723607465661,-542.79,0.00014246,2]
[334840530,1723607465672,-3216.15,0.00014246,2]
[334840531,1723607465681,-996.72,0.00014246,2]
[334840532,1723607465690,-500.0,0.00014246,2]
[334840533,1723607465699,-500.0,0.00014246,2]
[334840534,1723607465708,-500.0,0.00014246,2]
[334840535,1723607465718,-864.22,0.00014246,2]
[334840536,1723607465728,-1090.63,0.00014246,2]
[334840537,1723607465737,-754.69,0.00014246,2]
[334840538,1723607465746,-500.0,0.00014246,2]
[334840539,1723607465755,-4142.45,0.00014246,2]
[334840540,1723607465765,-500.0,0.00014246,2]
[334840541,1723607465774,-16309.16,0.00014246,2]
[334840542,1723607465783,-2654.22,0.00014246,2]
[334840543,1723607465792,-500.0,0.00014246,2]
[334840544,1723607465801,-25466.62,0.00014246,2]
[334840545,1723607465810,-500.0,0.00014246,2]
[334840546,1723607465819,-4541.96,0.00014246,2]
[334840547,1723607465828,-519.09,0.00014246,2]
[334840548,1723607465837,-500.0,0.00014246,2]
[334840549,1723607465846,-500.0,0.00014246,2]
[334840550,1723607465856,-500.0,0.00014246,2]
[334840551,1723607465865,-539.83,0.00014246,2]
[334840552,1723607465874,-889.01,0.00014246,2]
[334840553,1723607465883,-500.0,0.00014246,2]
[334840554,1723607465892,-2396.89,0.00014246,2]
[334840555,1723607465901,-1347.69,0.00014246,2]
[334840556,1723607465910,-500.0,0.00014246,2]
[334840557,1723607465919,-677.92,0.00014246,2]
[334840558,1723607465928,-503.65123317,0.00014246,2]
[334840559,1723607465937,-6138.85,0.00014246,2]
[334840560,1723607465946,-9972.45,0.00014246,2]
[334840561,1723607465955,-1022.55,0.00014246,2]
[334840562,1723607465964,-500.0,0.00014246,2]
[334840563,1723607465973,-809.32,0.00014246,2]
[334840564,1723607465982,-642.44,0.00014246,2]
[334840565,1723607465991,-500.0,0.00014246,2]
[334840566,1723607466000,-8165.91,0.00014246,2]
[334840567,1723607466009,-1024.38,0.00014246,2]
[334840568,1723607466018,-2852.39,0.00014246,2]
[334840569,1723607466028,-500.0,0.00014246,2]
[334840570,1723607466038,-1105.51,0.00014246,2]
[334840571,1723607466048,-5016.05,0.00014246,2]
[334840572,1723607466059,-779.07,0.00014246,2]
[334840573,1723607466068,-2644.48,0.00014246,2]
[334840574,1723607466077,-4884.61,0.00014246,2]
[334840575,1723607466087,-5077.56,0.00014246,2]
[334840576,1723607466096,-500.0,0.00014246,2]
[334840577,1723607466105,-500.0,0.00014246,2]
[334840578,1723607466118,-500.0,0.00014246,2]
[334840579,1723607466128,-14387.22,0.00014246,2]
[334840580,1723607466138,-500.0,0.00014246,2]
[334840581,1723607466147,-6250.39,0.00014246,2]
[334840582,1723607466156,-700.09,0.00014246,2]
[334840583,1723607466166,-1108.79,0.00014246,2]
[334840584,1723607466175,-2760.64,0.00014246,2]
[334840585,1723607466184,-1348.31,0.00014246,2]
[334840586,1723607466195,-661.27,0.00014246,2]
[334840587,1723607466204,-860.11,0.00014246,2]
[334840588,1723607466214,-500.0,0.00014246,2]
[334840589,1723607466223,-500.0,0.00014246,2]
[334840590,1723607466232,-844.08,0.00014246,2]
[334840591,1723607466242,-7897.51,0.00014246,2]
[334840592,1723607466251,-500.0,0.00014246,2]
[334840593,1723607466260,-6779.45,0.00014246,2]
[334840594,1723607466270,-500.0,0.00014246,2]
[334840595,1723607466279,-2175.6,0.00014246,2]
[334840596,1723607466288,-1926.56,0.00014246,2]
[334840597,1723607466297,-500.0,0.00014246,2]
[334840598,1723607466306,-500.0,0.00014246,2]
[334840599,1723607466315,-7867.37,0.00014246,2]
[334840600,1723607466325,-966.36,0.00014246,2]
[334840601,1723607466334,-2876.73,0.00014246,2]